bitfinex/quotes_ETHUSD_20250130
["timestamp","ask_amount","ask_price","bid_price","bid_amount"]
[1738267184810,3.05517,3273.2,3272.8,0.55]
[1738267185389,0.8145,3273.3,3272.8,0.55]
[1738267185604,3.05547,3272.9,3272.7,0.45754852]
[1738267185969,3.05548,3272.8,3272.7,0.45754852]
[1738267186307,3.05548,3272.8,3272.6,0.55]
[1738267187306,3.05558,3272.7,3272.6,0.55]
[1738267187521,3.05593,3272.4,3272.2,0.8193]
[1738267188094,3.05593,3272.4,3272.3,0.55]
[1738267188273,3.05593,3272.4,3272.1,0.555]
[1738267188476,3.05567,3272.6,3272.1,2.01171774]
[1738267188692,3.05567,3272.6,3272.3,2.00671774]
[1738267189314,3.05567,3272.6,3272.5,0.55]
[1738267190693,3.05567,3272.6,3272.5,1.00745134]
[1738267191592,3.05552,3272.8,3272.5,1.00745134]
[1738267191795,3.05533,3273.0,3272.5,2.46416908]
[1738267191996,3.05516,3273.2,3272.8,1.3048]
[1738267192778,0.7549,3273.4,3272.8,1.3048]
[1738267192978,3.0548,3273.6,3273.4,0.55]
[1738267193218,3.05483,3273.5,3273.4,0.55]
[1738267193532,3.05492,3273.4,3273.3,0.55]
[1738267194300,3.05492,3273.4,3273.1,0.55]
[1738267195139,3.05492,3273.4,3273.2,0.45745134]
[1738267195445,3.05492,3273.4,3273.3,0.55]
[1738267195834,3.05492,3273.4,3273.2,0.45745134]
[1738267196173,3.05502,3273.3,3273.2,0.45745134]
[1738267196349,3.05502,3273.3,3273.2,1.00745134]
[1738267198638,6.10992,3273.4,3273.2,1.00745134]
[1738267198837,3.05492,3273.4,3273.2,1.00745134]
[1738267199052,3.05478,3273.6,3273.3,0.55]
[1738267199256,3.05452,3273.9,3273.6,0.55]
[1738267199557,3.05439,3274.0,3273.6,0.55]
[1738267200255,3.05439,3274.0,3273.8,0.55]
[1738267200458,3.05446,3273.9,3273.8,0.55]
[1738267201309,3.05446,3273.9,3273.8,1.00745134]
[1738267203090,3.05433,3274.1,3273.8,1.00745134]
[1738267203292,3.05419,3274.2,3273.8,1.00745134]
[1738267203790,3.05428,3274.1,3273.5,8.53012333]
[1738267203942,3.05428,3274.1,3273.7,0.55]
[1738267204450,3.05428,3274.1,3274.0,0.55]
[1738267205548,3.05436,3274.0,3273.9,0.45689271]
[1738267205747,3.05428,3274.1,3273.5,5.47533333]
[1738267206075,3.05451,3273.9,3273.6,0.55]
[1738267206283,3.05428,3274.1,3273.6,0.55]
[1738267206459,3.65358422,3274.6,3273.5,4.70333333]
[1738267206460,3.054,3274.4,3273.9,0.0075]
[1738267206661,3.85306,3274.6,3273.9,3.06189]
[1738267206854,3.05401,3274.4,3273.9,4.71083333]
[1738267207243,3.05418,3274.2,3274.0,0.45657826]
[1738267207453,3.05401,3274.4,3274.0,0.45657826]
[1738267207890,3.05409,3274.3,3274.0,0.45657826]
[1738267208752,3.05409,3274.3,3273.9,4.71083333]
[1738267208994,3.05409,3274.3,3273.9,5.682885]
[1738267210665,3.05392,3274.5,3273.9,8.737295]
[1738267211306,3.05392,3274.5,3274.0,0.45616074]
[1738267211817,3.054,3274.4,3274.0,0.45616074]
[1738267212514,3.054,3274.4,3273.9,8.737295]
[1738267212805,3.054,3274.4,3274.1,0.55]
[1738267214764,0.60645886,3274.7,3274.3,0.55]
[1738267214975,3.05379,3274.7,3274.3,0.55]
[1738267216079,3.05383,3274.6,3274.3,0.55]
[1738267216782,6.10739,3274.8,3274.3,0.55]
[1738267217033,3.05374,3274.7,3274.3,0.55]
[1738267218520,3.05335,3275.1,3274.7,0.7912]
[1738267218703,3.05353,3274.9,3274.4,0.7912]
[1738267218907,0.8168,3275.1,3274.5,0.55]
[1738267219108,3.05408,3274.3,3274.2,0.56995126]
[1738267219730,3.08472018,3274.3,3274.2,0.56995126]
[1738267219882,3.87792018,3274.3,3274.2,0.56995126]
[1738267220086,3.05436,3274.0,3273.9,0.45615066]
[1738267221792,3.05427,3274.2,3274.0,0.55]
[1738267221980,3.05399,3274.4,3274.0,0.55]
[1738267222183,3.05384,3274.6,3273.9,3.6044]
[1738267222413,3.05384,3274.6,3274.2,0.55]
[1738267223884,3.05418,3274.2,3273.8,0.8071]
[1738267224080,3.0543,3274.1,3273.5,3.86187]
[1738267225722,3.0543,3274.1,3273.7,0.55]
[1738267226531,3.05409,3274.3,3273.7,3.60458]
[1738267226680,3.05394,3274.5,3273.9,0.55]
[1738267227214,3.05409,3274.3,3273.9,0.55]
[1738267227796,3.05436,3274.0,3273.9,0.55]
[1738267228292,3.05436,3274.0,3273.6,0.55]
[1738267228499,3.05428,3274.1,3273.6,3.60473]
[1738267229665,3.05438,3274.0,3273.6,0.55]
[1738267229858,3.05438,3274.0,3273.8,0.55]
[1738267230672,3.05421,3274.2,3273.8,0.55]
[1738267230834,6.10847,3274.2,3274.0,0.55]
[1738267231864,3.05427,3274.1,3274.0,0.55]
[1738267232266,3.05437,3274.0,3273.6,0.55]
[1738267232780,3.05421,3274.2,3273.6,3.6047]
[1738267232953,3.05387,3274.6,3274.1,0.7742]
[1738267233132,3.05387,3274.6,3274.1,3.82847]
[1738267233979,3.05387,3274.6,3274.3,0.55]
[1738267234783,3.05356,3274.9,3274.4,0.7742]
[1738267234954,3.05356,3274.9,3274.4,3.82812]
[1738267235279,0.7982,3275.1,3274.4,3.82812]
[1738267235280,3.05343,3275.0,3274.6,0.55]
[1738267237108,3.05353,3274.9,3274.7,0.45738102]
[1738267237268,3.05353,3274.9,3274.8,0.55]
[1738267238707,3.05353,3274.9,3274.8,1.00738102]
[1738267240226,0.7982,3275.4,3274.9,0.8259]
[1738267240513,3.85515,3275.7,3275.0,3.97009114]
[1738267240720,3.05298,3275.5,3275.0,0.91667114]
[1738267240899,3.05289,3275.6,3275.0,0.91667114]
[1738267241213,3.053,3275.5,3275.0,0.91667114]
[1738267241400,3.053,3275.5,3275.0,0.55]
[1738267241717,3.053,3275.5,3275.2,0.55]
[1738267242074,3.05279,3275.7,3275.2,0.55]
[1738267243015,3.05279,3275.7,3275.4,0.55]
[1738267243696,3.05287,3275.6,3275.4,0.55]
[1738267243914,3.05296,3275.5,3275.4,0.55]
[1738267244521,3.05296,3275.5,3275.0,0.55]
[1738267245011,3.05279,3275.7,3275.0,3.60342]
[1738267245214,6.10564,3275.7,3275.0,3.60342]
[1738267245843,3.05279,3275.7,3275.0,3.60342]
[1738267245996,3.05287,3275.6,3275.0,3.60342]
[1738267246197,3.05297,3275.5,3275.0,3.60342]
[1738267246446,3.05297,3275.5,3275.2,0.55]
[1738267246654,3.05279,3275.7,3275.2,0.55]
[1738267248153,3.05279,3275.7,3275.4,0.55]
[1738267248350,3.05279,3275.7,3275.4,1.3076]
[1738267249750,3.05284,3275.7,3275.4,0.55]
[1738267249950,3.05284,3275.7,3275.3,0.55]
[1738267250649,3.05315,3275.3,3275.2,0.45618115]
[1738267251013,3.05315,3275.3,3275.0,0.55]
[1738267254268,3.05331,3275.2,3275.0,0.55]
[1738267254573,3.05334,3275.1,3274.7,0.55]
[1738267255128,0.03064018,3275.2,3274.7,0.55]
[1738267255322,3.08393018,3275.2,3274.7,3.6037]
[1738267256171,3.05313,3275.4,3274.7,3.60364]
[1738267256468,3.05313,3275.4,3274.9,0.55]
[1738267256865,3.05316,3275.3,3274.9,0.55]
[1738267257228,3.05283,3275.7,3275.1,0.55]
[1738267257433,3.05266,3275.9,3275.4,0.55]
[1738267257643,3.48044208,3275.9,3275.4,0.55]
[1738267257863,3.0528,3275.7,3275.3,0.55]
[1738267260556,6.10567,3275.7,3275.3,0.55]
[1738267260754,3.0528,3275.7,3275.3,0.55]
[1738267260970,3.05283,3275.7,3275.3,0.55]
[1738267261696,4.45413377,3276.2,3275.3,0.55]
[1738267261697,3.05289,3275.6,3275.3,0.55]
[1738267263083,3.05274,3275.8,3275.3,0.55]
[1738267263610,3.05274,3275.8,3275.3,3.60312]
[1738267264902,3.05279,3275.7,3275.3,0.55]
[1738267266188,3.08357018,3275.6,3275.3,0.55]
[1738267266537,3.05306,3275.4,3274.9,0.8274]
[1738267266750,3.05325,3275.2,3275.0,0.55]
[1738267267245,6.1062,3275.4,3275.0,0.55]
[1738267267430,3.0533,3275.2,3274.8,0.5575]
[1738267268329,3.05306,3275.4,3274.8,0.5575]
[1738267268546,3.05317,3275.3,3274.8,0.5575]
[1738267269645,3.05339,3275.1,3274.6,9.6809]
[1738267269830,0.03064018,3275.5,3274.6,9.6809]
[1738267270033,3.05342,3275.1,3274.7,0.55]
[1738267270656,3.0532,3275.3,3274.7,0.55]
[1738267270965,3.05302,3275.5,3274.9,3.84672]
[1738267271177,6.10605,3275.5,3274.9,3.84672]
[1738267271498,3.05302,3275.5,3274.9,3.84672]
[1738267272628,3.05306,3275.4,3274.9,3.84672]
[1738267272830,3.05325,3275.2,3274.9,0.7932]
[1738267273063,3.05343,3275.0,3274.6,0.7594]
[1738267273373,3.05339,3275.1,3274.7,0.55]
[1738267273741,6.1068,3275.1,3274.7,0.55]
[1738267273942,3.05339,3275.1,3274.7,0.55]
[1738267275706,3.05341,3275.1,3274.7,0.55]
[1738267277085,3.05327,3275.2,3274.7,3.60371]
[1738267277294,3.05327,3275.2,3274.7,4.346159]
[1738267279263,3.05327,3275.2,3274.9,0.55]
[1738267282632,3.05327,3275.2,3275.0,0.55]
[1738267283293,3.05344,3275.0,3274.6,1.3289]
[1738267283736,3.0537,3274.8,3274.2,0.7789]
[1738267283937,3.054,3274.4,3273.9,0.7789]
[1738267284092,3.05392,3274.5,3273.9,3.83334]
[1738267284623,3.05392,3274.5,3274.0,0.55]
[1738267284830,3.05392,3274.5,3274.0,0.65054866]
[1738267286338,3.05392,3274.5,3274.0,0.55]
[1738267286544,3.05419,3274.2,3273.9,0.7789]
[1738267286696,3.05439,3274.0,3273.5,3.80802]
[1738267286899,3.05439,3274.0,3273.5,1.50031629]
[1738267287241,3.05439,3274.0,3273.6,0.55]
[1738267287435,3.05451,3273.9,3273.6,0.55]
[1738267289711,3.05428,3274.1,3273.6,0.55]
[1738267290534,3.05438,3274.0,3273.6,0.55]
[1738267291250,2.84081143,3274.7,3273.6,0.55]
[1738267291251,0.60398417,3275.0,3274.1,0.776]
[1738267291576,3.05315,3275.3,3274.5,3.60388]
[1738267291702,3.05315,3275.3,3274.6,3.0538]
[1738267291902,3.05298,3275.5,3274.8,0.0075]
[1738267292141,3.05298,3275.5,3275.0,0.776]
[1738267292343,0.7582,3275.7,3275.1,0.55]
[1738267292344,3.05311,3275.4,3275.1,0.55]
[1738267292866,3.05311,3275.4,3274.3,3.05407]
[1738267292867,3.05327,3275.2,3274.6,0.776]
[1738267293009,3.05327,3275.2,3274.6,3.8298]
[1738267293206,0.8217,3275.3,3274.2,14.42403333]
[1738267293554,3.05373,3274.7,3274.2,14.42403333]
[1738267293723,3.05373,3274.7,3274.3,0.55]
[1738267299109,3.0538,3274.6,3274.3,0.55]
[1738267300236,3.08444018,3274.6,3273.9,3.86875]
[1738267300437,3.054,3274.4,3273.9,3.86875]
[1738267300610,0.03064018,3274.3,3274.0,0.55]
[1738267301509,3.054,3274.4,3274.0,0.55]
[1738267302836,3.0538,3274.6,3274.0,0.55]
[1738267303525,3.05392,3274.5,3274.0,0.55]
[1738267307009,3.05392,3274.5,3274.0,3.60434]
[1738267309957,3.0538,3274.6,3274.0,0.55]
[1738267310316,3.05395,3274.5,3274.0,0.55]
[1738267311343,3.0538,3274.6,3274.2,0.55]
[1738267312060,3.05362,3274.8,3274.4,0.55]
[1738267312832,3.05381,3274.6,3274.4,0.55]
[1738267316290,3.05362,3274.8,3274.3,3.054]
[1738267317379,3.05362,3274.8,3274.2,3.60412]
[1738267317697,3.05388,3274.6,3274.2,0.55]
[1738267317893,0.03064018,3274.5,3274.2,0.55]
[1738267318255,3.08452018,3274.6,3274.2,0.55]
[1738267318456,0.03064018,3274.5,3274.2,0.55]
[1738267318656,3.05388,3274.6,3274.2,0.55]
[1738267319293,3.05388,3274.6,3274.2,3.60417]
[1738267319494,3.05365,3274.8,3274.2,4.347725]
[1738267319802,3.05365,3274.8,3274.2,3.60417]
[1738267320297,3.05377,3274.7,3274.2,3.60417]
[1738267321454,3.05377,3274.7,3274.2,0.55]
[1738267321455,3.08450018,3274.6,3274.2,0.55]
[1738267321654,3.05386,3274.6,3274.2,0.55]
[1738267322991,2.84081143,3274.7,3274.2,0.55]
[1738267323203,3.05365,3274.8,3274.2,3.60412]
[1738267324994,3.05378,3274.7,3274.2,3.60412]
[1738267326606,3.05378,3274.7,3274.2,3.6041]
[1738267326896,3.05378,3274.7,3274.3,0.55]
[1738267328011,3.05377,3274.7,3274.3,0.55]
[1738267328359,1.38774953,3275.2,3274.3,0.988125]
[1738267328558,1.38774953,3275.2,3273.9,0.0075]
[1738267328559,3.05306,3275.4,3274.7,0.55]
[1738267328791,3.05291,3275.6,3275.0,3.05336]
[1738267328993,3.05257,3276.0,3275.5,0.55]
[1738267329159,3.05257,3276.0,3275.7,0.55]
[1738267329373,3.05268,3275.8,3275.7,0.55]
[1738267331602,3.05268,3275.8,3275.6,0.7931]
[1738267332260,6.10545,3275.8,3275.6,0.7931]
[1738267332462,3.05268,3275.8,3275.3,1.343]
[1738267332825,3.05268,3275.8,3275.3,1.782616]
[1738267334002,3.05303,3275.5,3275.3,0.55]
[1738267334254,3.05312,3275.4,3275.0,0.8172]
[1738267334914,3.05312,3275.4,3275.1,0.55]
[1738267335908,3.05296,3275.6,3275.1,0.55]
[1738267336071,3.05298,3275.5,3275.1,0.55]
[1738267336270,3.05306,3275.4,3275.1,0.55]
[1738267340124,3.05292,3275.6,3275.1,0.55]
[1738267340319,3.05297,3275.5,3275.1,0.55]
[1738267340719,3.05297,3275.5,3274.7,0.8321]
[1738267340720,3.0535,3275.0,3274.7,0.8321]
[1738267340936,3.05359,3274.9,3274.4,0.8321]
[1738267341093,3.05364,3274.8,3274.4,0.8321]
[1738267341294,3.05383,3274.6,3274.1,3.05425]
[1738267341492,3.05383,3274.6,3274.1,0.8321]
[1738267341925,3.05383,3274.6,3274.2,0.55]
[1738267342083,3.05383,3274.6,3274.1,0.8321]
[1738267342284,3.05418,3274.2,3274.1,0.8321]
[1738267342528,3.05455,3273.8,3273.3,0.8321]
[1738267342734,0.03064018,3273.7,3273.3,0.8321]
[1738267342891,3.08532018,3273.7,3273.3,0.8321]
[1738267343233,3.05474,3273.6,3273.3,0.8321]
[1738267343599,3.05483,3273.5,3273.3,0.8321]
[1738267343927,3.05507,3273.3,3273.0,0.803]
[1738267344230,3.05507,3273.3,3273.1,0.55]
[1738267344525,3.05494,3273.4,3273.0,0.803]
[1738267344724,6.14059018,3273.4,3273.0,0.803]
[1738267344945,3.08558018,3273.4,3273.1,0.55]
[1738267345106,6.14059018,3273.4,3273.1,0.55]
[1738267345293,3.05511,3273.2,3272.6,0.803]
[1738267345710,3.05511,3273.2,3272.7,0.55]
[1738267345914,0.03064018,3273.1,3272.6,0.803]
[1738267346135,0.8228,3273.5,3272.6,0.803]
[1738267346136,3.05545,3272.9,3272.6,0.803]
[1738267346360,3.08619018,3272.8,3272.3,0.7513]
[1738267347053,3.05555,3272.8,3272.3,0.7513]
[1738267347448,3.05555,3272.8,3272.4,0.55]
[1738267348861,3.05536,3273.0,3272.4,0.55]
[1738267349023,3.05536,3273.0,3272.4,2.184328]
[1738267349256,3.05536,3273.0,3272.4,5.240178]
[1738267349441,3.05536,3273.0,3272.4,3.60585]
[1738267353651,3.05542,3272.9,3272.4,3.60585]
[1738267353853,3.05536,3273.0,3272.4,3.60585]
[1738267355313,3.05539,3272.9,3272.4,0.55]
[1738267355561,3.0555,3272.8,3272.4,0.55]
[1738267356649,3.05558,3272.7,3272.4,0.55]
[1738267356858,3.05569,3272.6,3272.4,0.55]
[1738267357045,3.08633018,3272.6,3272.4,0.55]
[1738267358131,0.8117,3272.9,3272.2,0.55]
[1738267358132,3.08620018,3272.8,3272.2,0.55]
[1738267358333,3.05556,3272.8,3272.2,0.55]
[1738267358847,3.05556,3272.8,3272.2,3.60603]
[1738267359155,3.86713,3272.9,3272.2,3.60603]
[1738267359460,3.05558,3272.7,3272.2,0.55]
[1738267359631,3.05578,3272.5,3272.2,0.55]
[1738267359834,3.05558,3272.7,3272.2,0.55]
[1738267360558,3.05569,3272.6,3272.2,0.55]
[1738267361447,3.08633018,3272.6,3272.2,0.55]
[1738267361753,3.05577,3272.5,3272.2,0.55]
[1738267362233,3.05587,3272.4,3272.2,0.55]
[1738267362651,3.05587,3272.4,3272.1,0.005]
[1738267362823,3.05587,3272.4,3272.1,0.555]
[1738267365457,3.05596,3272.3,3272.1,0.555]
[1738267366376,3.05604,3272.2,3272.1,0.005]
[1738267366522,3.08668018,3272.2,3272.1,0.005]
[1738267367278,6.89028018,3272.2,3272.1,0.005]
[1738267367570,6.85964,3272.2,3272.1,0.005]
[1738267370978,7.47232437,3272.2,3272.1,0.005]
[1738267377998,3.05604,3272.2,3272.1,0.005]
[1738267378497,3.08668018,3272.2,3272.1,0.005]
[1738267379690,6.84248018,3272.2,3272.1,0.005]
[1738267379881,6.81184,3272.2,3272.1,0.005]
[1738267383154,6.81184,3272.2,3272.1,1e-05]
[1738267383401,12.16184,3272.2,3272.1,1e-05]
[1738267384872,15.11015143,3272.2,3272.1,1e-05]
[1738267385257,12.26934,3272.2,3272.1,1e-05]
[1738267385758,12.65080835,3272.2,3272.1,1e-05]
[1738267387193,15.83755778,3272.2,3272.1,1e-05]
[1738267387661,3.05744,3270.7,3270.6,0.7643]
[1738267387894,3.05778,3270.4,3270.0,0.8106]
[1738267388103,3.05778,3270.4,3270.1,0.55]
[1738267390113,3.05672,3271.5,3270.6,0.8322]
[1738267390323,6.1139,3271.3,3270.8,0.8322]
[1738267390465,3.05694,3271.3,3270.9,0.55]
[1738267390690,3.05674,3271.5,3271.0,0.7613]
[1738267390948,3.05636,3271.9,3271.1,0.55]
[1738267391239,3.05668,3271.6,3271.3,0.55]
[1738267391449,3.05656,3271.7,3271.3,0.55]
[1738267392007,3.05665,3271.6,3271.3,0.55]
[1738267393442,0.62033858,3272.3,3271.4,0.8212]
[1738267393596,3.05629,3272.0,3271.6,0.8212]
[1738267393990,3.05633,3271.9,3271.6,0.8212]
[1738267394426,3.05616,3272.1,3271.6,0.8212]
[1738267395743,3.05609,3272.2,3271.8,0.7965]
[1738267396237,3.05597,3272.3,3271.9,0.55]
[1738267396405,3.05586,3272.4,3272.1,0.55]
[1738267396849,3.05578,3272.5,3272.1,0.55]
[1738267397339,5.61241343,3272.7,3272.3,0.55]
[1738267397507,3.05577,3272.5,3272.3,0.55]
[1738267398741,5.61241343,3272.7,3272.3,0.55]
[1738267398955,3.05561,3272.7,3272.3,0.55]
[1738267399245,6.1109,3272.9,3272.4,0.7901]
[1738267399443,3.05543,3272.9,3272.4,0.7901]
[1738267399812,3.05525,3273.1,3272.7,0.55]
[1738267399813,3.05526,3273.1,3272.7,0.55]
[1738267400016,3.05535,3273.0,3272.7,0.55]
[1738267401153,3.05539,3272.9,3272.7,0.55]
[1738267403042,3.05539,3272.9,3272.7,0.55]
[1738267403341,3.0557,3272.6,3272.1,0.7962]
[1738267403500,3.08634018,3272.6,3272.2,0.55]
[1738267403903,3.05587,3272.4,3272.2,0.55]
[1738267404504,3.05577,3272.5,3272.2,0.55]
[1738267405729,3.05577,3272.5,3272.1,0.7962]
[1738267405930,3.0556,3272.7,3272.1,0.7962]
[1738267406111,3.0556,3272.7,3272.2,0.55]
[1738267406445,3.05567,3272.6,3272.2,0.55]
[1738267406642,3.0556,3272.7,3272.2,0.55]
[1738267407007,3.05549,3272.8,3272.4,0.55]
[1738267407338,3.0554,3272.9,3272.4,0.55]
[1738267407513,6.11087,3272.9,3272.4,0.55]
[1738267407704,3.0554,3272.9,3272.4,4.049632]
[1738267407905,3.05531,3273.0,3272.6,0.55]
[1738267408307,3.05525,3273.1,3272.6,0.55]
[1738267408507,3.05531,3273.0,3272.6,0.55]
[1738267408754,3.05525,3273.1,3272.7,0.7711]
[1738267408957,3.05505,3273.3,3272.8,0.55]
[1738267409387,3.05505,3273.3,3273.0,0.55]
[1738267409911,3.05473,3273.7,3273.0,0.55]
[1738267410140,6.10944,3273.7,3273.2,0.55]
[1738267410444,3.05479,3273.6,3273.2,0.55]
[1738267410831,3.05483,3273.6,3273.2,0.55]
[1738267411153,3.05489,3273.5,3273.2,0.55]
[1738267411638,3.055,3273.4,3273.2,0.55]
[1738267411850,3.05502,3273.3,3273.2,0.55]
[1738267412907,3.05511,3273.2,3273.1,0.8086]
[1738267413117,3.05534,3273.0,3272.7,0.8062]
[1738267413653,3.05534,3273.0,3272.2,6.1604]
[1738267413654,3.05582,3272.5,3272.2,6.1604]
[1738267413818,6.11126,3272.7,3272.2,6.1604]
[1738267414011,3.05559,3272.7,3272.2,6.1604]
[1738267414214,3.05568,3272.6,3272.2,6.1604]
[1738267414450,3.05568,3272.6,3272.3,0.55]
[1738267414751,3.05559,3272.7,3272.4,0.8215]
[1738267415636,3.05531,3273.0,3272.6,0.8215]
[1738267415840,3.05483,3273.5,3272.7,0.55]
[1738267416144,3.05547,3272.9,3272.7,0.55]
[1738267418376,3.05548,3272.8,3272.7,0.55]
[1738267418663,3.05592,3272.4,3272.3,0.7606]
[1738267419167,3.05602,3272.3,3271.9,1.3519]
[1738267419514,3.05614,3272.1,3271.9,0.8019]
[1738267419719,3.05602,3272.3,3271.9,0.8019]
[1738267419950,3.05602,3272.3,3272.0,0.55]
[1738267420462,3.05605,3272.2,3272.0,0.55]
[1738267420679,3.05614,3272.1,3272.0,0.55]
[1738267421260,3.05614,3272.1,3271.9,0.8019]
[1738267421460,0.03064018,3272.9,3271.5,0.8327]
[1738267421461,3.05649,3271.8,3271.5,0.8327]
[1738267421762,3.0566,3271.6,3271.5,0.8327]
[1738267421992,3.0566,3271.6,3271.4,0.55]
[1738267424741,3.05645,3271.8,3271.4,0.55]
[1738267425356,3.05604,3272.3,3271.4,3.86534658]
[1738267425547,3.05576,3272.5,3271.8,0.55]
[1738267425746,3.05596,3272.3,3271.8,0.55]
[1738267426682,3.05576,3272.5,3271.8,3.60641]
[1738267426881,3.05576,3272.5,3272.0,0.55]
[1738267427253,3.05576,3272.5,3272.0,3.60621]
[1738267427450,3.05561,3272.7,3272.2,0.55]
[1738267428152,3.05572,3272.6,3272.2,0.55]
[1738267429003,3.0558,3272.5,3272.2,0.55]
[1738267433605,3.05561,3272.7,3272.2,0.55]
[1738267433807,6.11127,3272.7,3272.2,0.55]
[1738267433986,3.05561,3272.7,3272.2,0.55]
[1738267435011,3.05527,3273.1,3272.4,0.55]
[1738267435311,3.05541,3272.9,3272.4,0.55]
[1738267436008,3.05554,3272.8,3272.4,0.55]
[1738267436187,3.05561,3272.7,3272.4,0.55]
[1738267436376,6.11127,3272.7,3272.4,0.55]
[1738267436572,3.05561,3272.7,3272.4,0.55]
[1738267437814,3.05561,3272.7,3272.6,0.55]
[1738267438015,3.05567,3272.6,3272.5,0.28555556]
[1738267439415,3.05561,3272.7,3272.4,0.55]
[1738267439623,3.05576,3272.5,3272.4,0.55]
[1738267440615,3.05542,3272.9,3272.4,0.55]
[1738267440843,3.05563,3272.7,3272.4,0.55]
[1738267441037,3.05563,3272.7,3272.4,0.83563664]
[1738267441328,3.05576,3272.5,3272.4,0.83563664]
[1738267441730,3.05576,3272.5,3272.4,0.28563664]
[1738267445032,6.70577143,3272.5,3272.4,0.28563664]
[1738267445813,3.86496,3272.5,3272.4,0.28563664]
[1738267446836,0.8092,3272.5,3271.5,3.34231664]
[1738267447002,3.05623,3272.1,3271.5,3.34231664]
[1738267447232,3.05625,3272.0,3271.5,3.34231664]
[1738267447470,3.8799,3271.6,3271.5,0.28563664]
[1738267447641,6.72071143,3271.6,3271.5,0.28563664]
[1738267448668,3.0567,3271.5,3271.4,0.0083]
[1738267449666,3.08734018,3271.5,3271.4,0.0083]
[1738267449852,6.08734018,3271.5,3271.4,0.0083]
[1738267450246,6.08734018,3271.5,3271.4,1e-05]
[1738267450570,6.84654018,3271.5,3271.4,1e-05]
[1738267450765,6.8159,3271.5,3271.4,1e-05]
[1738267455788,12.1659,3271.5,3271.4,1e-05]
[1738267460810,12.1659,3271.5,3270.0,0.7838]
[1738267460811,3.05707,3271.2,3270.0,0.7838]
[1738267460979,3.05819,3269.9,3269.8,6.1538]
[1738267461306,3.05819,3269.9,3269.8,0.7838]
[1738267462008,3.05841,3269.7,3269.3,0.8218]
[1738267462380,3.05847,3269.7,3269.4,0.55]
[1738267464913,0.03064018,3269.9,3269.3,0.8218]
[1738267465205,3.05866,3269.4,3269.3,0.8218]
[1738267465403,3.05866,3269.4,3269.3,1.3718]
[1738267465608,3.05866,3269.4,3269.3,0.8218]
[1738267466005,3.05856,3269.6,3269.3,0.8218]
[1738267466399,3.05859,3269.5,3269.3,0.8218]
[1738267466818,6.11725,3269.5,3269.3,0.8218]
[1738267467139,3.05859,3269.5,3269.3,0.8218]
[1738267470445,3.05843,3269.7,3269.3,0.8218]
[1738267470594,3.05856,3269.6,3269.3,0.8218]
[1738267470795,3.05858,3269.5,3269.3,0.8218]
[1738267471439,3.05866,3269.4,3269.3,0.8218]
[1738267472248,3.05858,3269.5,3269.3,0.8218]
[1738267472595,3.05866,3269.4,3269.3,0.8218]
[1738267473762,3.05948,3268.6,3268.2,5.38]
[1738267473966,2.84081143,3269.0,3268.2,5.38]
[1738267474255,3.05961,3268.4,3268.2,5.38]
[1738267474609,3.05954,3268.5,3268.2,5.38]
[1738267475650,3.05935,3268.7,3268.2,5.38]
[1738267477247,3.05935,3268.7,3268.2,8.43978]
[1738267477613,3.05935,3268.7,3268.3,0.28507069]
[1738267478113,3.05918,3268.9,3268.4,1.3728]
[1738267478546,3.05922,3268.8,3268.4,1.3728]
[1738267479127,3.05922,3268.8,3268.5,0.28507069]
[1738267479528,3.05932,3268.7,3268.5,0.28507069]
[1738267480253,3.05904,3269.0,3268.6,0.8218]
[1738267480455,3.05847,3269.6,3268.8,0.8218]
[1738267480654,3.05876,3269.3,3268.9,5.37]
[1738267481469,3.05835,3269.8,3268.9,5.37]
[1738267481620,6.11768,3269.3,3268.9,5.37]
[1738267481819,3.05884,3269.3,3268.9,5.37]
[1738267482321,3.05884,3269.3,3269.0,0.28507069]
[1738267483550,3.05894,3269.1,3269.0,0.28507069]
[1738267483760,3.05894,3269.1,3268.9,5.37]
[1738267484269,6.11768,3269.3,3268.9,5.37]
[1738267484451,3.05887,3269.2,3268.9,5.37]
[1738267484712,3.05884,3269.3,3268.9,5.37]
[1738267485142,3.05884,3269.3,3269.0,0.28526075]
[1738267485830,3.05859,3269.5,3269.1,0.7644]
[1738267486036,3.05866,3269.4,3269.1,0.7644]
[1738267486448,3.05859,3269.5,3269.2,0.28526075]
[1738267487422,6.11724,3269.5,3269.2,0.28526075]
[1738267487652,3.05859,3269.5,3269.2,0.28526075]
[1738267487859,3.05867,3269.4,3269.3,0.28526075]
[1738267495738,3.05867,3269.4,3269.3,0.51419034]
[1738267496970,3.05847,3269.6,3269.3,0.51419034]
[1738267497153,3.05866,3269.5,3269.3,0.51419034]
[1738267497353,3.05866,3269.5,3269.3,0.28526075]
[1738267497656,3.05866,3269.4,3269.3,0.28526075]
[1738267498673,3.86580018,3269.4,3269.3,0.28526075]
[1738267499641,3.83516,3269.4,3269.3,0.28526075]
[1738267499837,3.05866,3269.4,3269.3,0.28526075]
[1738267500043,3.05866,3269.4,3269.3,1.03586075]
[1738267500256,6.11702,3269.6,3269.3,1.03586075]